Cogmind - Beta 16 @@@ ROGUE MODE // 2026.01.03 @ 14:20:16 Player: leto Result: Destroyed by G-47 Trooper with Particle Gun Performance ------------- Evolutions (2) 1000 Regions Visited (5) 1000 Robots Destroyed (97) 485 Value Destroyed (2846) 2846 Prototype IDs (2) 40 Alien Tech Used (0) 0 Bonus (196) 196 TOTAL SCORE: 5567 Bonus ------- High Alert Combat Kills 120 Follower Combat Kills 76 Cogmind --------- Core Integrity 0/550 Matter 53/300 Energy 265/265 System Corruption 0% Temperature Cool (9) Movement Treading (145) Location -8/Materials Parts ------- > --- POWER (1) -------- Improved Ion Engine > --- PROPULSION (4) --- Advanced Treads Advanced Treads Advanced Treads VSS Leg > --- UTILITY (4) ------ Lightpack 2.0 > --- WEAPON (2) ------- Mini Grenade Launcher > --- INVENTORY (40) --- Improved Deuterium Engine Improved Deuterium Engine Improved Deuterium Engine Improved Deuterium Engine Aluminum Leg Improved Hover Unit Gravmag System Gravmag System Melee Analysis Suite Improved Light Armor Plating Hacking Suite High-powered Tractor Beam High-powered Tractor Beam Improved EM Pulse Cannon Improved EM Pulse Cannon Shotgun High-powered Shotgun High-powered Shotgun High-powered Shotgun Flak Cannon Flak Cannon Mini Grenade Launcher Improved Datajack Scythe Axe Peak State ------------ > --- POWER ------------ Improved Deuterium Engine > --- PROPULSION ------- Aluminum Leg Carbon-fiber Leg VSS Leg VSS Leg > --- UTILITY ---------- Lightpack 2.0 Hacking Suite > --- WEAPON ----------- Improved EM Pulse Cannon Heavy Assault Rifle > --- INVENTORY -------- Improved Ion Engine Deuterium Engine Nuclear Core Nuclear Core Nuclear Core Improved Deuterium Engine Improved Deuterium Engine Improved Deuterium Engine Improved Hover Unit Gravmag System Gravmag System Gravmag System Advanced Weight Redist. System Machine Analyzer Improved Sensor Array Improved Sensor Array Improved Sensor Array Melee Analysis Suite Particle Charger Improved Light Armor Plating Hacking Suite High-powered Tractor Beam High-powered Tractor Beam Improved EM Pulse Cannon Improved EM Pulse Cannon Improved EM Pulse Cannon High-powered Shotgun High-powered Shotgun High-powered Shotgun Flak Cannon Flak Cannon Flak Cannon Flak Cannon Grenade Launcher Mini Grenade Launcher Mini Grenade Launcher Improved Datajack Scythe Axe [Rating: 65] Favorites ----------- Power Light Ion Engine Engine Light Ion Engine Power Core Nuclear Core Propulsion Light Treads Treads Light Treads Leg VSS Leg Wheel Wheel Utility Small Storage Unit Device Thief Drone Bay Storage Small Storage Unit Processor Improved Signal Interpreter Hackware Hacking Suite Protection Light Armor Plating Weapon Light Assault Rifle Energy Gun EM Pulse Gun Energy Cannon Improved EM Pulse Cannon Ballistic Gun Light Assault Rifle Ballistic Cannon Assault Cannon Launcher Mini Grenade Launcher Impact Weapon Makeshift Hammer Special Melee Weapon Datajack Build | -11 -10 -10 -10 -9 -8 ------- Run | Yrd Mat Min Exi Min Mat Slots Evolved 4 | . . . . . 4 Power . | . . . . . . Propulsion 2 | . . . . . 2 Utility 2 | . . . . . 2 Weapon . | . . . . . . Parts Attached 71 | 7 11 2 3 4 44 Power 12 | 1 3 . . 1 7 Engine 11 | 1 3 . . 1 6 Core 1 | . . . . . 1 Reactor . | . . . . . . Propulsion 24 | 2 1 2 . 1 18 Treads 12 | 2 1 . . . 9 Leg 8 | . . . . . 8 Wheel 4 | . . 2 . 1 1 Hover . | . . . . . . Flight . | . . . . . . Utility 9 | 2 1 . . . 6 Device 1 | . . . . . 1 Storage 5 | 2 1 . . . 2 Processor 1 | . . . . . 1 Hackware 1 | . . . . . 1 Protection 1 | . . . . . 1 Artifact . | . . . . . . Weapon 26 | 2 6 . 3 2 13 Energy Gun 3 | 1 1 . . 1 . Energy Cannon 1 | . . . . . 1 Ballistic Gun 14 | 1 4 . 1 1 7 Ballistic Cannon 3 | . . . . . 3 Launcher 3 | . 1 . . . 2 Special Weapon . | . . . . . . Impact Weapon 1 | . . . 1 . . Slashing Weapon . | . . . . . . Piercing Weapon . | . . . . . . Special Melee Weapon 1 | . . . 1 . . Unidentified Prototypes 2 | . . . . . 2 Corrupted Parts 1 | . 1 . . . . System Corruption 4 | . 4 . . . . Parts Lost 25 | . 3 . . . 22 Power 4 | . . . . . 4 Propulsion 11 | . 2 . . . 9 Utility 2 | . . . . . 2 Weapon 8 | . 1 . . . 7 Highest Loss Streak 5 | . 1 . . . 5 To Critical Strikes . | . . . . . . Average Backups 19 | . 9 18 19 18 31 Power 2 | . 1 2 2 2 3 Propulsion 4 | . 1 3 5 5 5 Utility 5 | . 2 4 5 6 10 Weapon 6 | . 3 7 6 4 9 Tool/Special . | . . . . . . Unused Backups 60 | . 1 . . 2 57 Power 8 | . . . . . 8 Propulsion 15 | . 1 . . 2 12 Utility 19 | . . . . . 19 Weapon 17 | . . . . . 17 Tool/Special 1 | . . . . . 1 Average Slot Usage (%) 84 | . 90 73 98 100 72 Engine 11 | . 14 14 14 14 7 Treads 12 | . 21 11 . . 10 Leg 5 | . . . . . 17 Wheel 7 | . . 4 28 28 3 Storage 22 | . 28 28 28 28 10 Energy Gun 2 | . 3 . . 12 1 Ballistic Gun 15 | . 21 14 13 14 9 Ballistic Cannon 1 | . . . . . 3 Special Melee Weapon 2 | . . . 12 1 . Peak Build Rating 65 | 7 8 8 12 13 65 Average Rating 22 | 5 6 6 10 12 52 On Entrance 7 | . 7 6 8 12 13 Avg Prop Armor Cover (%) 11 | . . . . . 11 Naked Turns . | . . . . . . Heaviest Build 53 | 17 53 49 50 53 53 Greatest Support 80 | 40 40 20 20 20 80 Greatest Overweight (x) 4 | . 2 2 2 2 4 Average Overweight (x) 1 | . 1 2 2 2 . Largest Inventory Capacity 40 | 8 20 20 20 20 40 Average Capacity 26 | 6 19 20 20 20 39 Most Carried 40 | . 19 20 20 20 40 Average Carried 19 | . 9 18 19 19 31 Final Capacity 40 | 8 20 20 20 20 40 Final Carried 25 | . 17 20 20 20 25 Class Distribution -------------------- 57% | Mutant 31% | Hauler-Mutant 10% | Scavenger-Mutant Dominant Class ---------------- Mutant | -10/Materials Mutant | -10/Mines Scavenger-Mutant | -10/Exiles Mutant | -9/Mines Hauler-Mutant | -8/Materials Resources | -11 -10 -10 -10 -9 -8 ----------- Run | Yrd Mat Min Exi Min Mat Matter Collected 2510 | 94 597 45 62 103 1609 Remotely . | . . . . . . Salvage Created 3464 | 76 950 . 76 64 2298 Parts 183 | 3 51 . . 13 116 Haulers Intercepted 8 | . 2 . . . 6 Recyclers Shooed 2 | . 2 . . . . Parts Field Recycled . | . . . . . . Retrieved Matter . | . . . . . . Parts Self-Destructed . | . . . . . . Prevented . | . . . . . . Parts Restored . | . . . . . . Kills | -11 -10 -10 -10 -9 -8 ------- Run | Yrd Mat Min Exi Min Mat Combat Hostiles Destroyed 63 | . 18 . . 1 44 Guns 27 | . 10 . . 1 16 Cannons 21 | . . . . . 21 AOE 15 | . 8 . . . 7 Classes Destroyed 15 | 1 8 . . 1 5 Worker 6 | . 3 . . . 3 Builder 3 | . 1 . . . 2 Tunneler 4 | . . . . 3 1 Hauler 8 | . 2 . . . 6 Recycler 4 | 1 3 . . . . Mechanic 1 | . 1 . . . . Operator 3 | . 1 . . . 2 Watcher 5 | . 2 . . . 3 Swarmer 10 | . 9 . . 1 . Grunt 39 | . 9 . . . 30 Brawler 2 | . . . . . 2 Duelist 1 | . . . . . 1 Sentry 8 | . . . . . 8 Specialist 2 | . . . . . 2 Heavy 1 | . . . . . 1 Best Kill Streak 8 | 1 8 . . 1 8 Combat Bots Only 8 | . 8 . . 1 6 Max Kills in Single Turn 3 | 1 3 . . 1 3 Gunslinging . | . . . . . . Exploded 3 | . 3 . . . 2 Melee . | . . . . . . Uniques/NPCs Destroyed . | . . . . . . Combat | -11 -10 -10 -10 -9 -8 -------- Run | Yrd Mat Min Exi Min Mat Hostile Shots Fired 365 | . 98 . . 4 263 Missed 90 | . 24 . . 2 64 Hits 275 | . 74 . . 2 199 Melee 11 | . . . . . 11 Projectile 264 | . 74 . . 2 188 AOE 2 | . . . . . 2 Critical Strikes 13 | . . . . . 13 Part Disruptions 1 | . 1 . . . . Damage Taken 4440 | 35 802 . . 26 3577 Core 730 | . 163 . . 16 551 Absorbed by Shields . | . . . . . . Core Remaining (%) 64 | 100 . . . 28 . Volleys Fired 322 | 1 105 5 15 7 189 Largest 2 | 2 2 1 1 2 2 Hottest 94 | 60 60 20 20 73 94 Shots Fired 558 | 2 192 5 15 15 329 Gun 404 | 2 189 5 15 15 178 Cannon 129 | . . . . . 129 Launcher 25 | . 3 . . . 22 Special . | . . . . . . Kinetic 456 | 1 167 5 15 7 261 Thermal 26 | . . . . 8 18 Explosive 25 | . 3 . . . 22 Electromagnetic 51 | 1 22 . . . 28 Robot Hit Streak 17 | 2 17 1 8 4 15 Robot Miss Streak 9 | . 9 5 1 2 4 Penetration Max . | . . . . . . Secondary Targets 6 | . 3 . . . 3 Max Gunslinging Chain 1 | . 1 . . . 1 Shots Hit Robots 384 | 2 108 1 38 10 225 Core Hits 181 | 1 55 . 6 4 115 Critical Kills . | . . . . . . Critical Parts Destroyed . | . . . . . . Critical Strikes 2 | . . . . . 2 Burn 1 | . . . . . 1 Blast 1 | . . . . . 1 Melee Attacks 25 | . . . 25 . . Impact . | . . . . . . Slashing . | . . . . . . Piercing . | . . . . . . Sneak Attacks 10 | . . . 10 . . Combat Hostiles . | . . . . . . Follow-up Attacks . | . . . . . . Damage Inflicted 7566 | 57 1617 14 112 151 5615 Guns 3403 | 25 1123 7 112 130 2006 Cannons 2195 | . . . . . 2195 Explosions 1894 | 32 485 . . . 1377 Melee . | . . . . . . Ramming 74 | . 9 7 . 21 37 Kinetic 4503 | 13 910 7 112 81 3380 Thermal 335 | 32 32 . . 49 222 Explosive 1730 | . 437 . . . 1293 Electromagnetic 924 | 12 229 . . . 683 Impact . | . . . . . . Slashing . | . . . . . . Piercing . | . . . . . . Highest Corruption 4 | . 4 4 4 4 . Average Corruption 4 | . 4 4 4 4 . Corruption Purged . | . . . . . . Corruption Blocked . | . . . . . . Effects 98 | . 44 19 28 7 . Message Errors 25 | . 8 6 9 2 . Matter Fused 20 | . 9 3 6 2 . Heat Flow Errors 11 | . 6 2 2 1 . Energy Discharges 9 | . 5 3 . 1 . Parts Rejected 2 | . 2 . . . . Data Loss (minor) 15 | . 6 3 6 . . Data Loss (major) 7 | . 3 1 3 . . Misfires 4 | . 3 . . 1 . Alerts 4 | . 1 1 2 . . Weapon Failures 1 | . 1 . . . . Overload Shots . | . . . . . . Overflow Damage 77 | 2 41 . . . 34 Projectiles 11 | . . . . . 11 Explosions 66 | 2 41 . . . 23 Melee . | . . . . . . Knockbacks 19 | . . . . . 19 Impact . | . . . . . . Kinetic 17 | . . . . . 17 Secondary 2 | . . . . . 2 Self-Inflicted Damage 253 | 35 91 . . 10 117 Shots 9 | 1 4 . . . 4 Rammed 7 | . 2 1 . 1 3 Targets Rammed 11 | . 2 1 . 1 7 Kicked 4 | . . . . . 4 Crushed . | . . . . . . Highest Temperature 310 | 12 294 211 266 131 310 Average Temperature 71 | 12 74 96 126 34 68 Received Heat Transfer 1644 | . 234 . . . 1410 Effects 2 | . . . . . 2 Interference 2 | . . . . . 2 Siege Activations . | . . . . . . Martial Activations . | . . . . . . Shielding Activations . | . . . . . . Robots Disrupted . | . . . . . . Combat Hostiles . | . . . . . . Robots Corrupted . | . . . . . . Combat Hostiles . | . . . . . . Parts Fried 2 | . . . . . 2 Impact Corruptions 1 | . . . . . 1 Robots Melted . | . . . . . . Combat Hostiles . | . . . . . . Parts Melted 1 | . . . . . 1 Heat Transferred 829 | 50 50 . . 148 581 Parts Sabotaged . | . . . . . . Parts Stolen . | . . . . . . Parts Stripped . | . . . . . . Power Chain Reactions 3 | 1 1 . . . 1 Alert | -11 -10 -10 -10 -9 -8 ------- Run | Yrd Mat Min Exi Min Mat Maximum Alert Level 2 | . 1 . . . 2 Low Security (%) 83 | 100 98 100 . 100 56 Level 1 13 | . 1 . . . 33 Level 2 3 | . . . . . 9 Level 3 . | . . . . . . Level 4 . | . . . . . . Level 5 . | . . . . . . High Security . | . . . . . . Max Security . | . . . . . . Peak Influence 683 | 5 213 . . 65 683 Initial . | . . . . . . Average 101 | . 51 . . 18 210 Influence Increases 2359 | 5 591 . 5 90 1668 Destroy 0b10 Robot/C 1380 | . 360 . . 60 960 Destroy 0b10 Robot/NC 175 | 5 65 . 5 15 85 Destroy Leader 356 | . 88 . . 10 258 Allied During Kill 27 | . . . . 5 22 Successful Hack 39 | . 29 . . . 10 Select Force Hacks 30 | . . . . . 30 Disable Machine 150 | . 30 . . . 120 Destroy Structure 142 | . 19 . . . 123 Partial Spotted 30 | . . . . . 30 Lose Combat Pursuer 30 | . . . . . 30 Influence Decreases 1683 | 5 591 . 5 90 992 Time Decay 1169 | 5 479 . 5 90 590 Lost Part 232 | . 20 . . . 212 Lost Ally 40 | . . . . . 40 Purge Threat 242 | . 92 . . . 150 Squads Dispatched 18 | . 4 . . . 14 Investigation 9 | . 3 . . . 6 Extermination . | . . . . . . Reinforcement 6 | . 1 . . . 5 Assault . | . . . . . . Garrison 3 | . . . . . 3 Intercept . | . . . . . . Searches Triggered . | . . . . . . Construction Impeded 1 | . . . . . 1 Haulers Reinforced . | . . . . . . Active Scanning Responses . | . . . . . . Cargo Convoy Interrupts . | . . . . . . Stealth | -11 -10 -10 -10 -9 -8 --------- Run | Yrd Mat Min Exi Min Mat Distress Signals 7 | . 2 . . . 5 Communications Jammed . | . . . . . . Distress Signals . | . . . . . . Times Spotted 100 | . 38 . . 3 59 Peak Tracking Total 6 | . 6 . . 3 6 Tactical Retreats 2 | . . . . . 2 Traps | -11 -10 -10 -10 -9 -8 ------- Run | Yrd Mat Min Exi Min Mat Traps Triggered 5 | . 3 . . . 2 Indirectly . | . . . . . . Trap Hack Attempts . | . . . . . . Triggered . | . . . . . . Disarmed . | . . . . . . Reprogrammed . | . . . . . . Reused . | . . . . . . Traps Extracted . | . . . . . . Installed . | . . . . . . Triggered . | . . . . . . Machines | -11 -10 -10 -10 -9 -8 ---------- Run | Yrd Mat Min Exi Min Mat Machines Disabled 11 | . 3 . . . 8 Max in Single Turn 2 | . 2 . . . 1 Machines Repaired . | . . . . . . Machines Dismantled . | . . . . . . Machines Sabotaged . | . . . . . . Overloaded Fab Kills . | . . . . . . Hacking | -11 -10 -10 -10 -9 -8 --------- Run | Yrd Mat Min Exi Min Mat Machines Accessed 18 | . 7 1 1 . 9 Terminals 15 | . 7 . . . 8 Fabricators . | . . . . . . Repair Stations . | . . . . . . Recycling Units . | . . . . . . Scanalyzers 1 | . . . . . 1 Garrison Access . | . . . . . . Total Hacks 61 | . 21 1 9 . 30 Successful 38 | . 12 1 9 . 16 Failed 23 | . 9 . . . 14 Catastrophic 2 | . 1 . . . 1 Database Lockouts . | . . . . . . Manual 44 | . 18 . 1 . 25 Terminals 45 | . 21 . . . 24 Fabricators . | . . . . . . Repair Stations . | . . . . . . Recycling Units . | . . . . . . Scanalyzers 6 | . . . . . 6 Garrison Access . | . . . . . . Terminal Hacks 16 | . 4 1 9 . 2 Record 9 | . . . 9 . . Open Door 1 | . . 1 . . . Unreport Threat 4 | . 3 . . . 1 Transport Status 1 | . 1 . . . . Recall Investigation 1 | . . . . . 1 Fabricator Hacks . | . . . . . . Repair Station Hacks . | . . . . . . Recycling Unit Hacks . | . . . . . . Scanalyzer 5 | . . . . . 5 Insert Component 5 | . . . . . 5 Garrison Access Hacks . | . . . . . . Unauthorized Hacks 16 | . 8 . . . 8 Terminals 15 | . 8 . . . 7 Botnet 12 | . 6 . . . 6 Operators 3 | . 2 . . . 1 Fabricators . | . . . . . . Repair Stations . | . . . . . . Recycling Units . | . . . . . . Scanalyzers 1 | . . . . . 1 Extract 1 | . . . . . 1 Garrison Access . | . . . . . . Data Cores Recovered . | . . . . . . Used . | . . . . . . Hacking Detections 12 | . 6 . . . 6 Full Trace Events 6 | . 2 . . . 4 Feedback Events . | . . . . . . Feedback Blocked . | . . . . . . Robot Schematics Acquired . | . . . . . . Robots Built . | . . . . . . Authchips . | . . . . . . Time . | . . . . . . Total Robot Build Rating . | . . . . . . Part Schematics Acquired 2 | . . . . . 2 Parts Built . | . . . . . . Authchips . | . . . . . . Time . | . . . . . . Total Part Build Rating . | . . . . . . Part Studies Acquired . | . . . . . . Parts Repaired . | . . . . . . Time . | . . . . . . Parts Recycled . | . . . . . . Recycled Matter . | . . . . . . Retrieved Matter . | . . . . . . Retrieved Components . | . . . . . . Parts Scanalyzed . | . . . . . . Part Schematics Acquired . | . . . . . . Parts Damaged . | . . . . . . Bothacking | -11 -10 -10 -10 -9 -8 ------------ Run | Yrd Mat Min Exi Min Mat Used RIF Installer . | . . . . . . Robots Hacked . | . . . . . . Non-combat . | . . . . . . Combat . | . . . . . . Robot Hacks Applied . | . . . . . . Relay Couplers Released . | . . . . . . Fabnet Peak Effective % . | . . . . . . Robots Rewired 4 | . . . 4 . . Allies Hacked . | . . . . . . Hacks Repelled . | . . . . . . Allies | -11 -10 -10 -10 -9 -8 -------- Run | Yrd Mat Min Exi Min Mat Total Allies 4 | . . . 4 . . Largest Group 4 | . . . 4 2 1 Highest-Rated Group 58 | . . . 58 29 21 Highest-Rated Ally 21 | . . . 21 21 21 Total Orders 2 | . . . . . 2 EXPLORE 2 | . . . . . 2 Ally Attacks 49 | . . . . 12 37 Total Damage 460 | . . . . 67 393 Kills 7 | . . . . 3 4 Allies Corrupted 1 | . . . . . 1 Allies Melted . | . . . . . . Intel | -11 -10 -10 -10 -9 -8 ------- Run | Yrd Mat Min Exi Min Mat Active Infowar (turns) . | . . . . . . Robot Analysis Total . | . . . . . . Derelict Logs Recovered 3 | . . 1 . 2 . Drone Launches 7 | . . . . . 7 Drone Recoveries 5 | . . . . . 5 Exploration | -11 -10 -10 -10 -9 -8 ------------- Run | Yrd Mat Min Exi Min Mat Turns Passed 7448 | 67 2537 1025 1131 308 2380 Spaces Moved 3726 | 36 810 396 948 254 1282 Core 8 | 3 . . . . 5 Treads 1409 | 33 810 270 . . 296 Legs 806 | . . . . . 806 Wheels 1503 | . . 126 948 254 175 Hover . | . . . . . . Flight . | . . . . . . Fastest Speed 50 | 50 160 110 110 110 80 Average Speed 163 | 150 271 253 110 110 119 Slowest Speed 320 | 160 320 320 110 110 250 Overloaded Moves . | . . . . . . Propulsion Burnouts . | . . . . . . Robots Hopped . | . . . . . . Potential Cave-ins . | . . . . . . Cave-ins Triggered . | . . . . . . Exploration Rate (%) 68 | 5 100 65 93 61 89 Regions Visited 5 Branch Regions 3 Pre-discovered Areas 1 | . . . . 1 . Known Exits Taken 1 | . . . . 1 . Unknown Exits Taken 4 | 1 1 1 1 . . Scrap Searched 4 | . . 2 . 2 . Spaces Dug 7 | . . . . . 7 Terrain Destroyed 145 | . 19 . . . 126 Melee . | . . . . . . Projectile 15 | . . . . . 15 AOE 130 | . 19 . . . 111 Terrain Rammed . | . . . . . . Walls Destroyed . | . . . . . . Machines Disabled . | . . . . . . Actions | -11 -10 -10 -10 -9 -8 --------- Run | Yrd Mat Min Exi Min Mat Total 4538 | 43 979 413 1013 273 1817 Wait 230 | . 30 . . . 200 Move 3721 | 35 809 395 947 253 1282 Hop . | . . . . . . Pick Up 85 | . 17 7 2 3 56 Fast Attach 25 | 7 3 . 2 . 13 Attach 22 | . 3 2 2 . 15 Detach 1 | . 1 . . . . Swap 34 | . 6 . . 4 24 Drop 47 | . 3 3 5 5 31 Fire 322 | 1 105 5 15 7 189 Melee 25 | . . . 25 . . Ram 1 | . . . . 1 . Kick 4 | . . . . . 4 Crush 6 | . 2 1 . . 3 Escape Stasis . | . . . . . . Rewire 15 | . . . 15 . . Trap . | . . . . . . Miscellaneous . | . . . . . . Route ------- -11/Scrapyard -10/Materials (discovered 6 exits: [*Mat x3] / *Min x2 / [*Sub]) -10/Mines (discovered 3 exits: [*Mat x2] / *Exi) -10/Exiles (discovered 2 exits: [*Min x2]) -9/Mines (discovered 2 exits: *Mat x2) -8/Materials (discovered 2 exits: [*Fac x2]) History --------- Turn | Location | Event 28 | -11/Scrapyard | Discovered new exit (range 16) 68 | -11/Scrapyard | Entered Materials 313 | -10/Materials | Build established: Mutant 339 | -10/Materials | Discovered new exit (range 10) 382 | -10/Materials | Discovered new exit (range 7) 507 | -10/Materials | Destroyed 8 combat bots 1037 | -10/Materials | Discovered new exit (range 15) 1479 | -10/Materials | Core integrity fell below 50% 1537 | -10/Materials | Discovered new exit (range 3) 1836 | -10/Materials | Discovered new exit (range 10) 2270 | -10/Materials | Discovered new exit (range 8) 2605 | -10/Materials | Entered Mines 2628 | -10/Mines | Learned Materials non-interactive machine intel 2653 | -10/Mines | Met a Derelict bent on vengeance 2669 | -10/Mines | Discovered new exit (range 9) 2753 | -10/Mines | Discovered new exit (range 14) 2926 | -10/Mines | Found the Drone Emporium 2948 | -10/Mines | Found Prototype Device 3624 | -10/Mines | Deemed a non-threat by the Exiles lab entrance 3625 | -10/Mines | Discovered new exit (range 5) 3630 | -10/Mines | Entered Exiles 3630 | -10/Exiles | Found Exiles lab destroyed 3647 | -10/Exiles | Discovered new exit (range 14) 4018 | -10/Exiles | Build established: Scavenger-Mutant 4455 | -10/Exiles | Opened EX-Vault 4468 | -10/Exiles | Found Prototype Storage 4750 | -10/Exiles | Discovered new exit (range 11) 4761 | -10/Exiles | Entered Mines 4761 | -9/Mines | Accompanied by 2 allies 4775 | -9/Mines | Identified exit to Materials 4822 | -9/Mines | Discovered exit to Materials (range 14) 4892 | -9/Mines | Learned location of Storage (-7) 5047 | -9/Mines | Build established: Mutant 5069 | -9/Mines | Entered Materials 5069 | -8/Materials | Accompanied by 1 ally 5069 | -8/Materials | Evolved 4 slots: Propulsion x2, Utility x2 5070 | -8/Materials | Loaded intel: 43 non-interactive machine locations 5072 | -8/Materials | Identified Thief Drone Bay 5074 | -8/Materials | Identified Lightpack 2.0 5394 | -8/Materials | Build established: Hauler-Mutant 5553 | -8/Materials | Garrison activated, responded to threat 5643 | -8/Materials | Lost 5 parts (3n1u1w) 6009 | -8/Materials | Discovered new exit (range 16) 6223 | -8/Materials | Core integrity fell below 50% 6311 | -8/Materials | Lost 3 parts (1p1n1w) 6670 | -8/Materials | Discovered new exit (range 8) 7377 | -8/Materials | Core integrity fell below 20% 7449 | -8/Materials | Destroyed by G-47 Trooper with Particle Gun Last Messages --------------- U-05 Engineer lays Concrete. U-05 Engineer builds a Wall. The unstable cave ceiling collapses. U-05 Engineer lays Concrete. The unstable cave ceiling collapses. U-05 Engineer builds a Wall. The unstable cave ceiling collapses. U-05 Engineer lays Concrete. U-05 Engineer builds a Wall. Acquired 23 matter. T-07 Excavator is excavating. U-05 Engineer builds a Wall. Acquired 4 matter. Slammed into U-05 Engineer. Acquired 20 matter. Hpw. Shotgun destroyed. The unstable cave ceiling collapses. Structural Scanner crushed. The unstable cave ceiling collapses. [Achievement: 5k Club] Map ----- +----------------------------------------------------+ | #???????????? ? #??????????????? | | #???????????? ##?????????????? | | # #???????????? """ #?????????????? | | # ##???????????? """""| #??##??????????? | | # #???????????## """ "% #? ##?????????? | | + """ #???????????# " ## #?????????? | | # """ + ?"""?????## ##?????????? | | # """ #??"""????## # "##????????? | | # #??"""?#### # # " #????????? | | ## % #??????# #????????? | | ?# """ #??????#### ##???????? | | ?# """ #??????????# ### #???????? | | ?# """ #????????#### #???????? | | ?# ########## ] !# # ?????? | | ?# # # ] ! " ?????? | | ?# # # ] ! " ????? | | ?# # # ## " ????? | | ?# [ # # # # ;;" ?????? | | ?# %+ # # ## ###?????? | | ?# "T" # # " ! #?????? | | ?# ######## # " = ! #?????? | | ?# #??????# # g =# ##+###?????? | | ?# < #??????# # # ####??????????? | | ?# #??????###+###### "T" !########??????????? | | ?## ##????????# #????# """ =#%[ [#??????????? | | ??# #?????????# #????# @ ##=# =!! #??????????? | | ### ########### ########## ###%#=!= #??????????? | | [%* ] *=%+!!!"" #??????????? | | ################################!!S"" #??????????? | | ???????????????????????????????#!!"" #??????????? | | ???????????????????????????????########??????????? | | ?????????????????????????????????????????????????? | | ?????????????????????????????????????????????????? | | | | | | | | | | | | | | | | | | | | | | | | | | | | | | | | | | | +----------------------------------------------------+ Best States ------------- Heat Dissipation 31 Energy Generation 16 Energy Capacity 290 Matter Stores 450 Matter Capacity 450 Sight Range 16 Terrain Scan Density 10 Armor Coverage 150 Evasion (%) 55 Recoil Reduction 4 Offensive Hacking 10 Item Schematics ----------------- Terrain Scan Processor | -8/Materials | Extracted Thermal Generator | -8/Materials | Extracted Robot Schematics ------------------ None Fabricated ------------ Nothing Repaired ---------- Nothing Studied --------- None Alien Tech Used ----------------- None Achievements -------------- 5k Club A New Friend A Problem For Future Me Brute Force Bumper Bots DATA ERROR: Steam Global Achievement% GoHome() Heavy Suspicion I Know It's In Here Somewhere Luggage Code Novice Programmer Packrat Quantum Hacking Resistances Are Futile Safety First Serviceable Loadout Tourist Troublemaker Challenges ------------ None Game ------ Seed BombSupersonicHarness Manual? 0 Play Time 00:58:09 Cumulative 1.4 hours Start 2026.01.03 @ 13:15:15 End 2026.01.03 @ 14:20:16 Sessions 1 Manual Loads 0 Difficulty Rogue Special Mode None Game No. 2 Rogue 2 Adventurer 0 Explorer 0 Win Type - Total 0 Types 0/0/0/0/0/0/0/0/0/0 Lore% 0 Gallery% 4 Achievement% 6 Wizard Run 0 Options --------- Layout 1 ASCII 0 Keyboard 1 Movement Vi Keybinds 0 Fullscreen 1 Font 24/Smallcaps Map View 50x35 Zoom Use 0% Tactical HUD 0 Map Filters NONE Filters NONE Steam 1 RUN: 738d56ff-4a86-4676-acb5-4de2658e000b